{"text_format":"1","workbook":"xlsx","n_sheets":4,"sheets":["VAT-7","JPK - uzgodnienie z VAT-7","Parametry","techniczne"],"not_rendered":{"charts":0,"images":0,"macros":1,"external_links":0,"defined_names":233,"comments":3,"pivot_tables":0},"unopened":[],"bounds":{"document_bytes":16777216,"sheet_cells":100000,"rows_first":2000,"rows_last":500,"rows_between":2000,"halvings":0,"cell_chars":16384,"cell_head_chars":4096},"cells_cut":0,"cells_raw":0,"read":"whole","date_system":"1900"}

{"sheet":"VAT-7","index":0,"n_rows":178,"n_cols":21,"rows_kept":178,"cut":false,"hidden":false,"merged":[[177,18,178,18],[152,1,152,18],[155,1,156,18],[70,14,70,18],[65,3,65,13],[65,14,65,18],[66,3,66,13],[66,14,66,18],[67,3,67,13],[70,3,70,13],[79,1,79,18],[76,1,78,15],[77,16,78,17],[77,18,78,18],[121,11,121,13],[121,14,121,18],[122,11,122,13],[122,14,122,18],[104,1,104,18],[101,14,101,18],[102,14,102,18],[101,2,102,13],[86,1,86,18],[88,2,88,9],[22,3,22,18],[68,3,68,13],[68,14,68,18],[69,3,69,13],[69,14,69,18],[26,3,26,9],[26,10,26,14],[26,15,26,18],[28,3,28,6],[28,7,28,15],[28,17,28,18],[67,14,67,18],[40,4,40,9],[40,10,40,13],[40,14,40,18],[41,3,41,9],[41,14,41,18],[48,3,48,9],[48,10,48,13],[48,14,48,18],[49,3,49,9],[49,14,49,18],[50,3,50,9],[50,10,50,13],[87,14,87,18],[87,10,87,13],[84,3,84,13],[84,14,84,18],[85,3,85,13],[23,3,23,14],[23,15,23,18],[24,3,24,14],[24,15,24,18],[25,3,25,9],[25,10,25,14],[42,3,42,9],[42,10,42,13],[42,14,42,18],[43,4,43,9],[43,14,43,18],[37,3,37,9],[38,3,38,9],[38,10,38,13],[44,4,44,9],[44,10,44,13],[44,14,44,18],[39,4,39,9],[39,14,39,18],[9,1,10,18],[35,3,35,9],[36,3,36,9],[36,10,36,13],[30,3,30,9],[2,1,2,18],[3,1,3,8],[4,1,4,3],[4,4,4,8],[12,1,12,18],[5,5,5,14],[6,6,7,6],[6,8,6,10],[7,8,7,10],[30,10,30,11],[30,12,30,18],[32,1,34,9],[33,10,34,13],[33,14,34,18],[25,15,25,18],[16,1,16,18],[17,1,17,18],[18,3,18,18],[20,3,20,18],[50,14,50,18],[45,3,45,9],[45,14,45,18],[46,3,46,9],[46,10,46,13],[46,14,46,18],[47,3,47,9],[47,14,47,18],[57,3,57,9],[57,14,57,18],[58,3,58,9],[58,10,58,13],[58,14,58,18],[59,3,59,9],[59,14,59,18],[51,3,52,9],[52,10,52,13],[53,3,54,9],[54,10,54,13],[55,3,56,9],[55,14,55,18],[56,10,56,13],[56,14,56,18],[64,3,64,9],[64,10,64,13],[64,14,64,18],[63,3,63,9],[63,14,63,18],[60,3,60,9],[60,10,60,13],[60,14,60,18],[61,3,61,9],[61,14,61,18],[62,3,62,9],[62,10,62,13],[62,14,62,18],[74,10,75,13],[74,14,75,18],[75,3,75,9],[82,1,82,18],[83,1,83,13],[83,14,83,18],[71,3,71,13],[71,14,71,18],[72,3,72,13],[72,14,72,18],[73,3,73,9],[73,10,73,13],[73,14,73,18],[74,3,74,9],[85,14,85,18],[88,10,88,13],[88,14,88,18],[100,14,100,18],[93,2,94,13],[95,2,96,13],[97,2,98,13],[99,2,100,13],[103,16,103,18],[90,2,91,9],[89,10,89,13],[97,14,97,18],[99,14,99,18],[92,1,92,18],[93,14,93,18],[95,14,95,18],[94,14,94,18],[89,14,89,18],[89,2,89,9],[90,14,90,18],[90,10,90,13],[91,10,91,13],[91,14,91,18],[96,14,96,18],[151,7,151,18],[109,20,110,20],[109,14,109,18],[118,14,118,18],[131,14,131,18],[132,14,133,18],[113,14,113,18],[110,14,111,18],[115,14,116,18],[116,2,116,13],[120,5,120,13],[177,16,178,17],[106,14,106,18],[137,9,138,11],[142,1,142,18],[143,1,143,18],[137,2,137,5],[138,2,138,5],[136,2,136,5],[132,3,133,13],[119,4,122,4],[137,6,138,8],[117,3,117,13],[121,7,121,10],[122,7,122,10],[121,5,122,6],[140,2,140,18],[144,2,145,13],[144,14,144,18],[145,14,145,18],[146,2,147,13],[146,14,146,18],[147,14,147,18],[149,2,149,18],[151,1,151,4],[98,14,98,18],[135,1,135,16],[139,3,139,10],[137,12,138,15],[137,16,138,18],[105,2,106,13],[107,2,108,13],[109,2,109,13],[110,2,110,13],[111,2,111,13],[114,2,114,13],[114,14,114,18],[115,2,115,13],[108,14,108,18],[105,14,105,18],[107,14,107,18],[113,2,113,13],[128,9,128,13],[125,5,125,18],[126,14,126,18],[127,14,127,18],[128,14,128,18],[128,4,129,8],[129,9,129,18]]}
[]
[null,null,null,null,null,null,null,{"$f":"\"Niniejsza deklaracja stanowi część pliku \" &#REF!","v":{"$error":"#REF!"}}]
[]
[null," 1. Identyfikator podatkowy NIP podatnika"]
[null,null,null,null,{"$f":"IF(NIP=\"\",\"\",NIP*1)","v":{"$error":"#REF!"}},null,null,null,null,null,null,""]
[null,"VAT-7",null,null,null,"DEKLARACJA DLA PODATKU OD TOWARÓW I USŁUG"]
[null,null,null,null,null,null,"za"," 4. Miesiąc"," 5. Rok"]
[null,null,null,null,null,null,null,{"$f":"IF(Miesiac=\"\",\"\",Miesiac)","v":{"$error":"#REF!"}},{"$f":"IF(Rok=\"\",\"\",Rok)","v":{"$error":"#REF!"}}]
[]
[null,"Uwaga: przedstawiony poniżej podział na sekcje A..G jest oparty na ostatnim opublikowanym przez MF formularzu VAT-7 (20). Jest to podział wyłącznie poglądowy, gdyż w strukturze pliku JPK ta deklaracja nie jest dzielona na jakiekolwiek sekcje. Zawartość sekcji A i B jest odzwierciedleniem danych wprowadzonych w arkuszu \"JPK-Nagłówek\". Zawartość sekcji C to podsumowanie danych z arkusza \"JPK-Sprzedaż\", a sekcji D - arkusza \"JPK-Zakup\"."]
[]
[]
[null," A. MIEJSCE I CEL SKŁADANIA DEKLARACJI"]
[null,null,null," 6. Kod urzędu skarbowego, do którego adresowana jest deklaracja:",null,null,null,null,null,null,null," 7. Cel złożenia deklaracji:"]
[null,null,null,null,{"$f":"KodUrzedu","v":{"$error":"#REF!"}},null,null,null,null,null,null,null,"1. złożenie deklaracji",null,null,null,"2. korekta deklaracji"]
[null,null,null,null,null,null,null,null,null,{"$f":"(TypPodatnika = 2)","v":{"$error":"#REF!"}},{"$f":"(TypPodatnika = 1)","v":{"$error":"#REF!"}},null,{"$f":"(CelZlozenia=\"1\")","v":{"$error":"#REF!"}},null,null,null,{"$f":"(CelZlozenia=\"2\")","v":{"$error":"#REF!"}}]
[null," B. DANE IDENTYFIKACYJNE PODATNIKA"]
[]
[null,null,null," 8. Rodzaj podatnika:"]
[null,null,null,null,null,null,"1. podatnik niebędący osobą fizyczną",null,null,null,null,null,null,"2. osoba fizyczna"]
[null,null,null,{"$f":"\" 9. \" & IF(TypPodatnika = 2, \"Nazwa pełna\",\"Nazwisko, pierwsze imię, data urodzenia\") & \":\"","v":{"$error":"#REF!"}}]
[]
[null,null,null,{"$f":" IF(TypPodatnika = 2, IF(PelnaNazwa = \"\", \"\", PelnaNazwa), IF(Nazwisko = \"\",\"\",Nazwisko & \", \" & ImiePierwsze & \", \" & TEXT(DataUrodzenia,\"rrrr-MM-dd\")))","v":{"$error":"#REF!"}}]
[null,null,null," 9. Nazwa pełna",null,null,null,null,null,null,null,null,null,null,null,"REGON"]
[]
[null,null,null," 9. Nazwisko",null,null,null,null,null,null,"Pierwsze imię",null,null,null,null,"Data urodzenia (ddmmrrrr)"]
[]
[]
[]
[]
[]
[]
[null," C. ROZLICZENIE PODATKU NALEŻNEGO     "]
[null,null,null,null,null,null,null,null,null,null,"Podstawa opodatkowania w zł",null,null,null,"Podatek należny w zł"]
[]
[null,null,null," 1. Dostawa towarów oraz świadczenie usług na terytorium kraju,",null,null,null,null,null,null," 10."]
[null,null,null," zwolnione od podatku",null,null,null,null,null,null,{"$f":"+ROUND(S_10,)","v":{"$error":"#REF!"}}]
[null,null,null," 2. Dostawa towarów oraz świadczenie usług poza terytorium",null,null,null,null,null,null," 11."]
[null,null,null," kraju",null,null,null,null,null,null,{"$f":"+ROUND(S_11,)","v":{"$error":"#REF!"}}]
[null,null,null,null," 2a. w tym świadczenie usług, o których mowa w art. 100",null,null,null,null,null," 12."]
[null,null,null,null,"  ust. 1 pkt 4 ustawy",null,null,null,null,null,{"$f":"+ROUND(S_12,)","v":{"$error":"#REF!"}}]
[null,null,null," 3. Dostawa towarów oraz świadczenie usług na terytorium kraju,",null,null,null,null,null,null," 13."]
[null,null,null," opodatkowane stawką 0%",null,null,null,null,null,null,{"$f":"+ROUND(S_13,)","v":{"$error":"#REF!"}}]
[null,null,null,null," 3a. w tym dostawa towarów, o której mowa w art. 129",null,null,null,null,null," 14."]
[null,null,null,null,"  ustawy",null,null,null,null,null,{"$f":"+ROUND(S_14,)","v":{"$error":"#REF!"}}]
[null,null,null," 4. Dostawa towarów oraz świadczenie usług na terytorium kraju,",null,null,null,null,null,null," 15.",null,null,null," 16."]
[null,null,null,"opodatkowane stawką 5%, oraz korekty dokonanej zgodnie z art. 89a ust. 1 i 4 ustawy",null,null,null,null,null,null,{"$f":"+ROUND(S_15,)","v":{"$error":"#REF!"}},null,null,null,{"$f":"+ROUND(S_16,)","v":{"$error":"#REF!"}}]
[null,null,null," 5. Dostawa towarów oraz świadczenie usług na terytorium kraju,",null,null,null,null,null,null," 17.",null,null,null," 18."]
[null,null,null,"opodatkowane stawką 7% albo 8%, oraz korekty dokonanej zgodnie z art. 89a ust. 1 i 4 ustawy",null,null,null,null,null,null,{"$f":"+ROUND(S_17,)","v":{"$error":"#REF!"}},null,null,null,{"$f":"+ROUND(S_18,)","v":{"$error":"#REF!"}}]
[null,null,null," 6. Dostawa towarów oraz świadczenie usług na terytorium kraju,",null,null,null,null,null,null," 19.",null,null,null," 20."]
[null,null,null,"opodatkowane stawką 22% albo 23%, oraz korekty dokonanej zgodnie z art. 89a ust. 1 i 4 ustawy",null,null,null,null,null,null,{"$f":"+ROUND(S_19,)","v":{"$error":"#REF!"}},null,null,null,{"$f":"+ROUND(S_20,)","v":{"$error":"#REF!"}}]
[null,null,null," 7. Wewnątrzwspólnotowa dostawa towarów",null,null,null,null,null,null," 21."]
[null,null,null,null,null,null,null,null,null,null,{"$f":"+ROUND(S_21,)","v":{"$error":"#REF!"}}]
[null,null,null," 8. Eksport towarów",null,null,null,null,null,null," 22."]
[null,null,null,null,null,null,null,null,null,null,{"$f":"+ROUND(S_22,)","v":{"$error":"#REF!"}}]
[null,null,null," 9. Wewnątrzwspólnotowe nabycie towarów",null,null,null,null,null,null," 23.",null,null,null," 24."]
[null,null,null,null,null,null,null,null,null,null,{"$f":"+ROUND(S_23,)","v":{"$error":"#REF!"}},null,null,null,{"$f":"+ROUND(S_24,)","v":{"$error":"#REF!"}}]
[null,null,null," 10. Import towarów podlegający rozliczeniu zgodnie z art. 33a",null,null,null,null,null,null," 25.",null,null,null," 26."]
[null,null,null," ustawy",null,null,null,null,null,null,{"$f":"+ROUND(S_25,)","v":{"$error":"#REF!"}},null,null,null,{"$f":"+ROUND(S_26,)","v":{"$error":"#REF!"}}]
[null,null,null," 11. Import usług z wyłączeniem usług nabywanych od",null,null,null,null,null,null," 27.",null,null,null," 28."]
[null,null,null,"  podatników podatku od wartości dodanej, do których stosuje\n  się art. 28b ustawy",null,null,null,null,null,null,{"$f":"+ROUND(S_27,)","v":{"$error":"#REF!"}},null,null,null,{"$f":"+ROUND(S_28,)","v":{"$error":"#REF!"}}]
[null,null,null," 12. Import usług nabywanych od podatników podatku od",null,null,null,null,null,null," 29.",null,null,null," 30."]
[null,null,null,"   wartości dodanej, do których stosuje się art. 28b ustawy",null,null,null,null,null,null,{"$f":"+ROUND(S_29,)","v":{"$error":"#REF!"}},null,null,null,{"$f":"+ROUND(S_30,)","v":{"$error":"#REF!"}}]
[null,null,null," 13. Dostawa towarów, dla których podatnikiem jest nabywca",null,null,null,null,null,null," 31.",null,null,null," 32."]
[null,null,null,"   zgodnie z art. 17 ust. 1 pkt 5 ustawy",null,null,null,null,null,null,{"$f":"+ROUND(S_31,)","v":{"$error":"#REF!"}},null,null,null,{"$f":"+ROUND(S_32,)","v":{"$error":"#REF!"}}]
[null,null,null," 14. Kwota podatku należnego od towarów i usług objętych spisem z natury, o którym mowa w art. 14 ust. 5",null,null,null,null,null,null,null,null,null,null," 33."]
[null,null,null,"  ustawy",null,null,null,null,null,null,null,null,null,null,{"$f":"+ROUND(S_33,)","v":{"$error":"#REF!"}}]
[null,null,null," 15. Zwrot odliczonej lub zwróconej kwoty wydatkowanej na zakup kas rejestrujących, o którym mowa w art. 111",null,null,null,null,null,null,null,null,null,null," 34."]
[null,null,null,"  ust. 6 ustawy",null,null,null,null,null,null,null,null,null,null,{"$f":"+ROUND(S_34,)","v":{"$error":"#REF!"}}]
[null,null,null," 16. Kwota podatku należnego od wewnątrzwspólnotowego nabycia środków transportu, wykazanego w poz. 24,",null,null,null,null,null,null,null,null,null,null," 35."]
[null,null,null,"  podlegająca wpłacie w terminie, o którym mowa w art. 103 ust. 3, w związku z ust. 4 ustawy ",null,null,null,null,null,null,null,null,null,null,{"$f":"+ROUND(S_35,)","v":{"$error":"#REF!"}}]
[null,null,null," 17. Wysokość podatku od wewnątrzwspólnotowego nabycia towarów, o których mowa w art. 103 ust. 5aa,",null,null,null,null,null,null,null,null,null,null," 36."]
[null,null,null," podlegająca wpłacie w terminach,  o których mowa w art. 103 ust. 5a i 5b ustawy",null,null,null,null,null,null,null,null,null,null,{"$f":"+ROUND(S_36,)","v":{"$error":"#REF!"}}]
[null,null,null,"  Razem: (Poz. 37 = suma kwot z poz. 10, 11, 13, 15, 17, 19, 21, 22, 23, ",null,null,null,null,null,null,37,null,null,null," 38."]
[null,null,null," 25, 27, 29 i 31. Poz. 38 = suma kwot z poz. 16, 18, 20, 24, 26, 28, 30,",null,null,null,null,null,null,{"$f":"SUM(P_10, P_11, P_13, P_15, P_17, P_19, P_21, P_22, P_23, P_25, P_27, P_29, P_31)","v":{"$error":"#REF!"}},null,null,null,{"$f":"SUM(P_16, P_18, P_20, P_24, P_26, P_28, P_30, P_32, P_33, P_34) - (P_35 + P_36)","v":{"$error":"#REF!"}}]
[null,null,null," 32, 33 i 34, pomniejszona o kwoty z poz. 35 i 36)"]
[]
[null,null,null,null,null,null,null,null,null,null,null,null,null,null,null,null,"VAT-7(21)",null,"1/3"]
[]
[]
[null,null,null,null,null,null,null,{"$f":"$H$2","v":{"$error":"#REF!"}}]
[]
[null," D. ROZLICZENIE PODATKU NALICZONEGO"]
[null," D.1. PRZENIESIENIA",null,null,null,null,null,null,null,null,null,null,null,null,"Podatek do odliczenia w zł"]
[null,null,null," Kwota nadwyżki z poprzedniej deklaracji",null,null,null,null,null,null,null,null,null,null," 39."]
[null,null,null," Kwota z poz. „Kwota do przeniesienia na następny okres rozliczeniowy” z poprzedniej deklaracji lub wynikająca z decyzji."]
[null," D.2. NABYCIE TOWARÓW I USŁUG ORAZ PODATEK NALICZONY Z UWZGLĘDNIENIEM KOREKT"]
[null,null,null,null,null,null,null,null,null,null,"Wartość netto w zł",null,null,null,"Podatek naliczony w zł"]
[null,null," Nabycie towarów i usług zaliczanych u podatnika do środków",null,null,null,null,null,null,null,"40.",null,null,null,"41."]
[null,null," trwałych",null,null,null,null,null,null,null,{"$f":"+ROUND(Z_40,)","v":{"$error":"#REF!"}},null,null,null,{"$f":"+ROUND(Z_41,)","v":{"$error":"#REF!"}}]
[null,null," Nabycie towarów i usług pozostałych",null,null,null,null,null,null,null,"42.",null,null,null,"43."]
[null,null,null,null,null,null,null,null,null,null,{"$f":"+ROUND(Z_42,)","v":{"$error":"#REF!"}},null,null,null,{"$f":"+ROUND(Z_43,)","v":{"$error":"#REF!"}}]
[null," D.3. PODATEK NALICZONY – DO ODLICZENIA (w zł)"]
[null,null," Korekta podatku naliczonego od nabycia środków trwałych",null,null,null,null,null,null,null,null,null,null,null,"44."]
[null,null,null,null,null,null,null,null,null,null,null,null,null,null,{"$f":"+ROUND(Z_44,)","v":{"$error":"#REF!"}}]
[null,null," Korekta podatku naliczonego od pozostałych nabyć",null,null,null,null,null,null,null,null,null,null,null,"45."]
[null,null,null,null,null,null,null,null,null,null,null,null,null,null,{"$f":"+ROUND(Z_45,)","v":{"$error":"#REF!"}}]
[null,null," Korekta podatku naliczonego, o której mowa w art. 89b ust. 1 ustawy\n (kwota ujemna)",null,null,null,null,null,null,null,null,null,null,null,"46."]
[null,null,null,null,null,null,null,null,null,null,null,null,null,null,{"$f":"+ROUND(Z_46,)","v":{"$error":"#REF!"}}]
[null,null," Korekta podatku naliczonego, o której mowa w art. 89b ust. 4 ustawy",null,null,null,null,null,null,null,null,null,null,null,"47."]
[null,null,null,null,null,null,null,null,null,null,null,null,null,null,{"$f":"+ROUND(Z_47,)","v":{"$error":"#REF!"}}]
[null,null," Razem kwota podatku naliczonego do odliczenia.\n (Suma kwot z pozycji 39, 41, 43, 44, 45, 46 i 47)",null,null,null,null,null,null,null,null,null,null,null,"48."]
[null,null," Należy wpisać sumę kwot z poz. 42, 44, 46, 47, 48, 49 i 50.",null,null,null,null,null,null,null,null,null,null,null,{"$f":"SUM(P_39, P_41, P_43, P_44, P_45, P_46, P_47)","v":{"$error":"#REF!"}}]
[]
[null," E. OBLICZENIE WYSOKOŚCI ZOBOWIĄZANIA PODATKOWEGO LUB KWOTY ZWROTU (w zł)"]
[null,null," Kwota wydana na zakup kas rejestrujących, do odliczenia w danym okresie rozliczeniowym\n (pomniejsza wysokość podatku należnego)",null,null,null,null,null,null,null,null,null,null,null,"49."]
[null,null," Kwota wykazana w poz. 52 nie może być wyższa od różnicy kwot z poz. 41 i 51.\n Jeżeli różnica kwot pomiędzy poz. 41 i 51 jest mniejsza lub równa 0, wówczas należy wpisać 0.",null,null,null,null,null,null,null,null,null,null,null,null,null,null,null,null,-1]
[null,null," Kwota podatku objęta zaniechaniem poboru",null,null,null,null,null,null,null,null,null,null,null,"50."]
[null,null," Kwota ta nie może być wyższa niż różnica pomiędzy kwotą z poz. 41 a sumą kwot z poz. 51 i 52.\n Jeżeli różnica kwot pomiędzy poz. 41 i 51, pomniejszona o kwotę z poz. 52 jest mniejsza od 0, wówczas należy wpisać 0.\n ",null,null,null,null,null,null,null,null,null,null,null,null,null,null,null,null,-1]
[null,null," Kwota podatku podlegającego wpłacie do urzędu skarbowego",null,null,null,null,null,null,null,null,null,null,null,"51.",null,null,null,null,null,0]
[null,null," Jeżeli różnica kwot pomiędzy poz. 38 i poz. 48 jest większa od 0, wówczas poz. 51 = poz. 38 - poz. 48 - poz. 49 - poz. 50, ",null,null,null,null,null,null,null,null,null,null,null,{"$f":"IF(AND(P_38=0,P_48=0),\"\",IF(P_38>P_48,P_38-P_48-P_49-P_50,0)+0.0000000000001)","v":{"$error":"#REF!"}}]
[null,null,"  w przeciwnym wypadku należy wpisać 0."]
[null,null," Kwota wydana na zakup kas rejestrujących, do odliczenia w danym okresie rozliczeniowym",null,null,null,null,null,null,null,null,null,null,null,"52."]
[null,null,"przysługująca do zwrotu w danym okresie rozliczeniowym lub powiększająca wysokość podatku naliczonego do przeniesienia na następny okres rozliczeniowy"]
[null,null," Nadwyżka podatku naliczonego nad należnym",null,null,null,null,null,null,null,null,null,null,null,"53."]
[null,null," Jeżeli różnica kwot pomiędzy poz. 48 i poz. 38 jest większa lub równa 0, wówczas poz. 53 = poz. 48 - poz. 38 + poz. 52",null,null,null,null,null,null,null,null,null,null,null,{"$f":"IF(P_38<P_48,P_48 - P_38+P_52,0)","v":{"$error":"#REF!"}}]
[null,null," w przeciwnym wypadku należy wpisać 0."]
[null,null,null," Kwota do zwrotu na rachunek bankowy wskazany przez podatnika",null,null,null,null,null,null,null,null,null,null,"54."]
[]
[null,null,null,null,"Zaznacz jeden z podanych kwadratów:"," 55. "]
[]
[null,null,null,null,null,"na rachunek rozliczeniowy, w terminie:",null," 56.",null,null,null," 57.",null,null," 58. "]
[]
[]
[null,null,null,null," 59. Zaliczenie zwrotu podatku na poczet przyszłych zobowiązań podatkowych"]
[null,null,null,null,null,"Podatnik wnosi o zaliczenie zwrotu podatku na poczet przyszłych zobowiązań podatkowych, zgodnie z art. 76 § 1 i art. 76b § 1 ustawy z dnia 29 sierpnia 1997 r. - Ordynacja podatkowa (Dz. U. z 2019 r. poz. 900, z późn. zm.), wraz z podaniem wysokości zaliczenia oraz rodzaju zobowiązania podatkowego:"]
[null,null,null,null," Kwota zwrotu do zaliczenia na poczet przyszłych zobowiązań podatkowych:",null,null,null,null,null,null,null,null,null," 60."]
[]
[null,null,null,null," Rodzaj przyszłego zobowiązania podatkowego:",null,null,null,null," 61."]
[null,null,null,null,null,null,null,null,null,""]
[]
[null,null,null," Kwota do przeniesienia na następny okres rozliczeniowy",null,null,null,null,null,null,null,null,null,null," 62."]
[null,null,null," Od kwoty z poz. 53 należy odjąć kwotę z poz. 54.",null,null,null,null,null,null,null,null,null,null,{"$f":"P_53 - P_54","v":{"$error":"#REF!"}}]
[]
[null,null,null,null,null,null,null,null,false,null,null,false,null,null,false]
[null," F. INFORMACJE DODATKOWE"]
[null,null," Podatnik wykonywał w okresie",null,null,null,"63.",null,null,"64.",null,null,"65.",null,null,null,"66."]
[null,null," rozliczeniowym czynności, o których"]
[null,null," mowa w (zaznaczyć właściwe kwadraty):"]
[null,null,"67."]
[]
[]
[null," G. INFORMACJA O KOREKCIE DEKLARACJI"]
[]
[null,null," Wysokość korekty podstawy opodatkowania, o której mowa w art. 89a ust. 1 ustawy\n",null,null,null,null,null,null,null,null,null,null,null,"68."]
[null,null," Kwota wykazana w poz. 52 nie może być wyższa od różnicy kwot z poz. 41 i 51.\n Jeżeli różnica kwot pomiędzy poz. 41 i 51 jest mniejsza lub równa 0, wówczas należy wpisać 0.",null,null,null,null,null,null,null,null,null,null,null,null,null,null,null,null,-1]
[null,null," Wysokość korekty podatku należnego, o której mowa w art. 89a ust. 1 ustawy",null,null,null,null,null,null,null,null,null,null,null,"69."]
[null,null," Kwota ta nie może być wyższa niż różnica pomiędzy kwotą z poz. 41 a sumą kwot z poz. 51 i 52.\n Jeżeli różnica kwot pomiędzy poz. 41 i 51, pomniejszona o kwotę z poz. 52 jest mniejsza od 0, wówczas należy wpisać 0.\n ",null,null,null,null,null,null,null,null,null,null,null,null,null,null,null,null,-1]
[null,null," 70. Uzasadnienie przyczyn złożenia korekty:"]
[null,null,""]
[]
[null,"VAT-7(21)",null,null,null,"2/3"]
[]
[null,null,null,null,null,null,null,{"$f":"$H$2","v":{"$error":"#REF!"}}]
[null,"POUCZENIA:",null,null,null,1]
[null,"W przypadku niewpłacenia w obowiązującym terminie podatku podlegającego wpłacie do urzędu skarbowego lub wpłacenia go w niepełnej wysokości niniejsza deklaracja stanowi podstawę do wystawienia tytułu wykonawczego zgodnie z przepisami o postępowaniu egzekucyjnym w administracji.\n\nZa podanie nieprawdy lub zatajenie prawdy i przez to narażenie podatku na uszczuplenie grozi odpowiedzialność przewidziana w przepisach Kodeksu karnego skarbowego."]
[]
[]
[]
[]
[]
[]
[]
[]
[]
[]
[]
[]
[]
[]
[]
[]
[]
[]
[]
[]
[]
[null,null,null,null,null,null,null,null,null,null,null,null,null,null,null,null,"VAT-7(21)",null,"3/3"]

{"sheet":"JPK - uzgodnienie z VAT-7","index":1,"n_rows":53,"n_cols":3,"rows_kept":53,"cut":false,"hidden":true,"merged":[]}
["ROZLICZENIE PODATKU NALEŻNEGO"]
[null,"Podstawa opodatkowania w zł","Podatek należny w zł"]
["1. Dostawa towarów oraz świadczenie usług, na terotyrium kraju, zwolnione od podatku",{"$f":"+ROUND(#REF!,)","v":{"$error":"#REF!"}}]
["2. Dostawa towarów oraz świadczenie usług poza terytorium kraju",{"$f":"+ROUND(#REF!,)","v":{"$error":"#REF!"}}]
["    2a. w tym świadczenie usług, o których mowa w art. 100 ust. 1 pkt. 4",{"$f":"+ROUND(#REF!,)","v":{"$error":"#REF!"}}]
["3. Dostawa towarów oraz świadczenie usług, na terytorium kraju, opodatkowane stawką 0%",{"$f":"+ROUND(#REF!,)","v":{"$error":"#REF!"}}]
["    3a. w tym dostawa towarów, o której mowa w art. 129 ustawy",{"$f":"+ROUND(#REF!,)","v":{"$error":"#REF!"}}]
["4. Dostawa towarów oraz świadczenie usług, na terytorium kraju, opodatkowane stawką 5%",{"$f":"+ROUND(#REF!,)","v":{"$error":"#REF!"}},{"$f":"+ROUND(#REF!,)","v":{"$error":"#REF!"}}]
["5. Dostawa towarów oraz świadczenie usług, na terytorium kraju, opodatkowane stawką 7% albo 8%",{"$f":"+ROUND(#REF!,)","v":{"$error":"#REF!"}},{"$f":"+ROUND(#REF!,)","v":{"$error":"#REF!"}}]
["6. Dostawa towarów oraz świadczenie usług, na terytorium kraju, opodatkowane stawką 22% albo 23%",{"$f":"+ROUND(#REF!,)","v":{"$error":"#REF!"}},{"$f":"+ROUND(#REF!,0)","v":{"$error":"#REF!"}}]
["7. Wewnątrzwspólnotowa dostawa towarów",{"$f":"+ROUND(#REF!,)","v":{"$error":"#REF!"}}]
["8. Eksport towarów",{"$f":"+ROUND(#REF!,)","v":{"$error":"#REF!"}}]
["9. Wewnątrzwspólnotowe nabycie towarów",{"$f":"+ROUND(#REF!,)","v":{"$error":"#REF!"}},{"$f":"+ROUND(#REF!,)","v":{"$error":"#REF!"}}]
["10. Import towarów podlegający rozliczeniu zgodnie z art. 33a ustawy",{"$f":"+ROUND(#REF!,)","v":{"$error":"#REF!"}},{"$f":"+ROUND(#REF!,)","v":{"$error":"#REF!"}}]
["11. Import usług z wyłączeniem usług nabywanych od podatników podatku od wartości dodanej, do których stosuje się art.. 28b",{"$f":"+ROUND(#REF!,)","v":{"$error":"#REF!"}},{"$f":"+ROUND(#REF!,)","v":{"$error":"#REF!"}}]
["12. Import usług nabywanych od podatników podatku od wartości dodanej, do których stosuje się art. 28b",{"$f":"+ROUND(#REF!,)","v":{"$error":"#REF!"}},{"$f":"+ROUND(#REF!,)","v":{"$error":"#REF!"}}]
["13. Dostawa towarów oraz świadczenie usług, dla których podatnkikiem jest nabywca zgodnie z art. 17 ust. 1 pkt 7 lub 8 (wypełnia dostawca)",{"$f":"+ROUND(#REF!,)","v":{"$error":"#REF!"}}]
["14. Dostawa towarów, dla których podatnikiem jest nabywca zgodnie z art. 17 ust. 1 pkt 5 (wypełnia nabywca)",{"$f":"+ROUND(#REF!,)","v":{"$error":"#REF!"}},{"$f":"+ROUND(#REF!,)","v":{"$error":"#REF!"}}]
["15. Dostawa towarów oraz świadczenie usług, dla których podatnikiem jest nabywca zgodnie z art. 17 ust. 1 pkt 7 lub 8 (wypełnia nabywca)",{"$f":"+ROUND(#REF!,)","v":{"$error":"#REF!"}},{"$f":"+ROUND(#REF!,)","v":{"$error":"#REF!"}}]
["16. Kwota podatku należnego od towarów i usług objętych spisem z natury, o których mowa w art. 14 ust. 5",null,{"$f":"+ROUND(#REF!,)","v":{"$error":"#REF!"}}]
["17. Zwrot odliczonej lub zwróconej kwoty wydatkowanej na zakup kas rejestrujących, o których mowa w art.. 111 ust. 6",null,{"$f":"+ROUND(#REF!,)","v":{"$error":"#REF!"}}]
["18. Kwota podatku należnego od wewnątrzwspólnotowego nabycia środków transportu, wykazanego w poz. 24, podlegająca wpłacie w terminie, o którym mowa w art. 103 ust. 3, w związku z ust. 4",null,{"$f":"+ROUND(#REF!,)","v":{"$error":"#REF!"}}]
["19. Kwota podatku od wewnątrzwspólnotowego nabycia paliw silnikowych, podlegająca wpłacie w terminach, o których mowa w art. 103 ust. 5a i 5b",null,{"$f":"+ROUND(#REF!,)","v":{"$error":"#REF!"}}]
[]
[]
[null,{"$f":"+B3+B4+B6+B8+B9+B10+B11+B12+B13+B14+B15+B16+B17+B18+B19","v":{"$error":"#REF!"}},{"$f":"+C8+C9+C10+C13+C14+C15+C16+C18+C19+C20-C21-C22-C23","v":{"$error":"#REF!"}}]
[]
[]
["ROZLICZENIE PODATKU NALICZONEGO"]
[]
["1. PRZENIESIENIA",null,"Podatek do odliczenia w zł"]
["Kwota nadwyżki z poprzedniej deklaracji"]
[]
[]
["2. NABYCIE TOWARÓW I USŁUG ORAZ PODATEK NALICZONY Z UWZGLĘDNIENIEM KOREKT"]
[]
[null,"Wartość netto w zł","Podatek naliczony w zł"]
["Nabycie towarów i usług zaliczanych u podatnika do środków trwałych",{"$f":"+ROUND(#REF!,)","v":{"$error":"#REF!"}},{"$f":"+ROUND(#REF!,)","v":{"$error":"#REF!"}}]
["Nabycie towarów i usług pozostałych",{"$f":"+ROUND(#REF!,)","v":{"$error":"#REF!"}},{"$f":"+ROUND(#REF!,)","v":{"$error":"#REF!"}}]
[]
["3. PODATEK NALICZONY - DO ODLICZENIA W ZŁ"]
["Korekta podatku naliczonego od nabycia środków trwałych",null,{"$f":"+ROUND(#REF!,)","v":{"$error":"#REF!"}}]
["Korekta podatku naliczonego od pozostałych nabyć",null,{"$f":"+ROUND(#REF!,)","v":{"$error":"#REF!"}}]
["Korekta podatku naliczonego, o której mowa w art. 89b ust. 1 ustawy",null,{"$f":"+ROUND(#REF!,)","v":{"$error":"#REF!"}}]
["Razem kwota podatku naliczonego do odliczenia",null,{"$f":"+C32+C38+C39+C42+C43+C44","v":{"$error":"#REF!"}}]
[]
[]
["OBLICZENIE WYSOKOŚCI ZOBOWIĄZANIA PODATKOWEGO LUB KWOTY DO ZWROTU (w zł)"]
["Kwota wydatkowana na zakup kas rejestrujących"]
["Kwota podatku objęta zaniechaniem poboru"]
["Kwota podatku podlegającego wpłacie do Urzędu Skarbowego",null,{"$f":"IF(C26>C45,C26-C45-C49-C50,0)","v":{"$error":"#REF!"}}]
["Kwota wydatkowana na zakup kas rejestrujących, przysługująca do zwrotu w danym okresie rozliczeniowym"]
["Nadwyżka podatku naliczonego nad należnym",null,{"$f":"IF(C45-C26>=0,C45-C26+C52,0)","v":{"$error":"#REF!"}}]

{"sheet":"Parametry","index":2,"n_rows":10,"n_cols":3,"rows_kept":10,"cut":false,"hidden":true,"merged":[]}
[]
[null,"Rozszerzenie pliku importu:"]
[]
[]
[null,"Arkusz","Komponent obsługujący import"]
[null,"JPK-Sprzedaż","brak"]
[null,"JPK-Zakup","brak"]
[]
[]
[null,"Sprawdzanie merytoryczne","tak"]

{"sheet":"techniczne","index":3,"n_rows":107,"n_cols":20,"rows_kept":107,"cut":false,"hidden":true,"merged":[[97,14,97,15],[98,14,98,15],[86,14,86,15],[91,14,91,15],[86,16,86,17],[87,14,87,15],[87,16,87,17],[95,14,95,15],[96,14,96,15],[91,16,91,17],[89,14,89,15],[89,16,89,17],[88,14,88,15],[88,16,88,17],[90,14,90,15],[90,16,90,17]]}
[]
[null,null,null,null,null,null,null,null,null,null,null,null,null,null,"Elementy list","Numery automat:","Nr obowiązkowej kolumny"]
[null,null,null,null,null,null,null,null,null,null,null,null,null,null,"SprzedazWiersz","LpSprzedazy",4]
[null,null,null,null,null,null,null,null,null,null,null,null,null,null,"ZakupWiersz","LpZakupu",4]
[]
[null,null,null,null,null,null,null,null,null,null,null,null,null,null,"XED","#4387"]
[null,null,null,null,null,null,null,null,null,null,null,null,null,null,"XSD:","https://www.gov.pl/attachment/d21ef656-8faa-4384-a960-a11895ce4a2a"]
[null,null,null,null,null,null,null,null,null,null,null,null,null,null,"Namespace:","http://jpk.mf.gov.pl/wzor/2019/11/06/11061/"]
[null,null,null,null,null,null,null,null,null,null,null,null,null,null,"AlternateImports",null,"http://jpk.mf.gov.pl/wzor/2016/10/26/10261/;http://jpk.mf.gov.pl/wzor/2017/11/13/1113/"]
[null,null,null,null,null,null,null,null,null,null,null,null,null,null,"ZeroToEmpty",true]
[null,null,null,null,null,null,null,null,null,null,null,null,null,null,"ZeroFollowsFields:","K_16,K_18,K_20,K_24,K_26,K_28,K_30,K_33,K_35,K_41,K_43,PodatekNalezny,PodatekNaliczony"]
[]
[null,null,null,null,null,null,null,null,null,null,null,null,null,null,"Dodatkowe testy merytoryczne podczas Importu i dopisywania (Append):"]
[]
[null,null,null,null,null,null,null,null,null,null,null,null,null,null,"Sprawdź podczas importu","Sprawdź podczas dołączania","Wykonać przed walidacją XSD?","Węzeł z porównywaną wartością (wyrażenie Xpath) (uruchamiane dla DocumentNode)","Oczekiwana wartość","Komunikat o ewentualnym błędzie (Wpisz {Val} tam, gdzie ma być podstawiona wartość z importowanego dokumentu)"]
[null,null,null,null,null,null,null,null,null,null,null,null,null,null,{"$f":"TRUE","v":true},{"$f":"TRUE","v":true},{"$f":"TRUE","v":true},"jpk:Naglowek/jpk:KodFormularza","JPK_VAT",{"$f":"\"Niewłaściwy typ pliku JPK ({Val}), podczas gdy powinien to być 'JPK_V7M'. Może próbujesz wczytać starszą wersję pliku JPK_VAT? Ten stary format zawiera inne pola, i taka operacja jest niemożliwa\"","v":"Niewłaściwy typ pliku JPK ({Val}), podczas gdy powinien to być 'JPK_V7M'. Może próbujesz wczytać starszą wersję pliku JPK_VAT? Ten stary format zawiera inne pola, i taka operacja jest niemożliwa"}]
[null,null,null,null,null,null,null,null,null,null,null,null,null,null,{"$f":"FALSE","v":false},{"$f":"TRUE","v":true},{"$f":"FALSE","v":false},"//jpk:Rok",{"$f":"Rok","v":{"$error":"#REF!"}},{"$f":"\"Plik dotyczy innego roku ({Val}) niż aktualnie wczytane dane (\" &S17 & \")\"","v":{"$error":"#REF!"}}]
[null,null,null,null,null,null,null,null,null,null,null,null,null,null,{"$f":"FALSE","v":false},{"$f":"TRUE","v":true},{"$f":"FALSE","v":false},"//jpk:Miesiac",{"$f":"Miesiac","v":{"$error":"#REF!"}},{"$f":"\"Plik dotyczy innego miesiąca ({Val}) niż aktualnie wczytane dane (\" &S18 & \")\"","v":{"$error":"#REF!"}}]
[null,null,null,null,null,null,null,null,null,null,null,null,null,null,{"$f":"FALSE","v":false},{"$f":"TRUE","v":true},{"$f":"FALSE","v":false},"//jpk:NIP",{"$f":"NIP","v":{"$error":"#REF!"}},{"$f":"\"Plik dotyczy przedsiębiorstwa o innym NIP ({Val}) niż dotychczas wczytane dane (dla przedsiębiorstwa o NIP: \" &S19 & \")\"","v":{"$error":"#REF!"}}]
[]
[null,null,null,null,null,null,null,null,null,null,null,null,null,null,"Nazwa skoroszytu:",null,"JPK_V7M"]
[null,null,null,null,null,null,null,null,null,null,null,null,null,null,"Numer seryjny:",null,"EVAL"]
[null,null,null,null,null,null,null,null,null,null,null,null,null,null,"Numer edycji:",null,1.6]
[null,null,null,null,null,null,null,null,null,null,null,null,null,null,"Wygenerowano:",null,"2020-02-09T12:34:44"]
[]
[null,null,null,null,null,null,null,null,null,null,null,null,null,null,"Komunikaty w oknach dialogowych",null,"00"]
[]
[]
[]
[]
[]
[]
[]
[]
[]
[]
[]
[]
[]
[]
[]
[]
[]
[]
[]
[]
[]
[]
[]
[]
[]
[]
[]
[]
[]
[]
[]
[]
[]
[]
[]
[]
[]
[]
[]
[]
[]
[]
[null,null,"Pola list wybieralnych:"]
[null,null,1,"Osoba fizyczna"]
[null,null,2,"Podatnik niebędący osobą fizyczną"]
[]
[]
[]
[]
[]
[]
[]
[]
[]
[]
[]
[]
[]
[]
[null,null,null,null,null,null,null,null,null,null,null,null,null,null,"Schematy, używane gdy nie można użyć wersji online z Ministerstwa Finansów:"]
[null,null,null,null,null,null,null,null,null,null,null,null,null,null,"Nazwa ramki",null,"Przestrzeń nazw"]
[null,null,null,null,null,null,null,null,null,null,null,null,null,null,"UrzedySkarbowe",null,"http://crd.gov.pl/xml/schematy/dziedzinowe/mf/2018/08/24/eD/DefinicjeTypy/"]
[null,null,null,null,null,null,null,null,null,null,null,null,null,null,"KodyKrajow",null,"http://crd.gov.pl/xml/schematy/dziedzinowe/mf/2018/08/24/eD/DefinicjeTypy/"]
[null,null,null,null,null,null,null,null,null,null,null,null,null,null,"ElementarneTypyDanych",null,"http://crd.gov.pl/xml/schematy/dziedzinowe/mf/2018/08/24/eD/DefinicjeTypy/"]
[null,null,null,null,null,null,null,null,null,null,null,null,null,null,"StrukturyDanych",null,"http://crd.gov.pl/xml/schematy/dziedzinowe/mf/2018/08/24/eD/DefinicjeTypy/"]
[null,null,null,null,null,null,null,null,null,null,null,null,null,null,"JPK",null,{"$f":"JPK_Namespace","v":"http://jpk.mf.gov.pl/wzor/2019/11/06/11061/"}]
[]
[null,null,null,null,null,null,null,null,null,null,null,null,null,null,"Weryfikacja merytoryczna niektórych pól:"]
[null,null,null,null,null,null,null,null,null,null,null,null,null,null,"Nazwy pól (kolumn)",null,"Typ testu","Pytanie, czy wyświetlić znalezione nieprawidłowości",null,"Wyjaśnienie, towarzyszące wyświetleniu nieprawidłowości"]
[null,null,null,null,null,null,null,null,null,null,null,null,null,null,"NrKontrahenta",null,"NIP","Sprawdzanie nr NIP klientów: znaleziono {Count} nieprawidłowości. Czy chcesz je teraz przejrzeć?\n\n(Jeżeli chcesz je zignorować i kontynuować zapis do pliku JPK, wybierz [Nie])\n",null,"Wiersze, które mogą zawierać błędny NIP zostały wyróżnione znakiem \"X\" w kolumnie \"Błąd\" (możesz je szybko wybrać za pomoca funkcji Filtruj). \n\nSprawdź te numery NIP (zwróć uwagę, że mogą się powtarzać dla kolejnych faktur tego samego kontrahenta). \nNumery NIP polskich przedsiębiorstw muszą się składać z 10 cyfr (np. 5251469286), BEZ  spacji czy kresek. Dla polskich NIP dopuszczalny jest przedrostek \"PL\"\nW przypadku detalistów/pracowników należy wpisywać w to pole słowo \"brak\".\n\nGdy skończysz je przeglądać/poprawiać, kliknij powtórnie w przycisk [Zapisz jako plik JPK]."]
[null,null,null,null,null,null,null,null,null,null,null,null,null,null,"K_16,K_18,K_20,K_24,K_26,K_28,K_30,K_32,K_33,K_35,K_36",null,"Zaokrąglenia","W jednej z kolumn znaleziono {Count} pól z ułamkami groszy. Te ułamki zmieniły kwotę podatku. Czy chcesz je teraz poprawić?\n\n(Jeżeli chcesz zignorować tę nieprawidłowość i kontynuować zapis do pliku JPK, wybierz [Nie])\n",null,"Wiersze, których pola zawierają ułamki groszy zostały wyróżnione znakiem \"X\" w kolumnie \"Błąd\" (możesz je szybko wybrać za pomoca funkcji Filtruj). \nKwoty w tych polach są wyświetlane z dokładnością co do grosza, ale gdy zjarzysz do ich formuł, przekonasz się że zawierają więcej miejsc po przecinku.\n \nWpisanie drobnego ułamka (0.0001) jest czasami przydatne do odnotowania w pliku JPK zerowych kwot VAT. Jednak w tym przypadku te ułamki sumują się w kwotę większą od 0.5 grosza, i powodują nieprawidłowe naliczenie sumy kontrolnej w pliku JPK. \nDlatego lepiej teraz popraw te liczby, zaokrąglając je odpowiednio do pełnych groszy.\n\nGdy skończysz nanosić te poprawki, kliknij powtórnie w przycisk [Zapisz jako plik JPK]."]
[null,null,null,null,null,null,null,null,null,null,null,null,null,null,"NrDostawcy",null,"NIP","Sprawdzanie nr NIP dostawców: znaleziono {Count} nieprawidłowości. Czy chcesz je teraz przejrzeć?\n\n(Jeżeli chcesz je zignorować i kontynuować zapis do pliku JPK, wybierz [Nie])\n",null,"Wiersze, które mogą zawierać błędny NIP zostały wyróżnione znakiem \"X\" w kolumnie \"Błąd\" (możesz je szybko wybrać za pomoca funkcji Filtruj). \n\nSprawdź te numery NIP (zwróć uwagę, że mogą się powtarzać dla kolejnych faktur tego samego kontrahenta). \nNumery NIP polskich przedsiębiorstw muszą się składać z 10 cyfr (np. 5251469286), BEZ przedrostka \"PL\" i kresek.\nW przypadku gdy kontrahent nie ma żadnego numeru (np. dla specjalnych zapisów technicznych) należy wpisywać w to pole słowo \"brak\".\n\nGdy skończysz je przeglądać/poprawiać, kliknij powtórnie w przycisk [Zapisz jako plik JPK]."]
[null,null,null,null,null,null,null,null,null,null,null,null,null,null,"K_41,K_43,K_44,K_45,K_46,K_47",null,"Zaokrąglenia","W jednej z kolumn znaleziono {Count} pól z ułamkami groszy. Te ułamki zmieniły kwotę podatku. Czy chcesz je teraz poprawić?\n\n(Jeżeli chcesz zignorować tę nieprawidłowość i kontynuować zapis do pliku JPK, wybierz [Nie])\n",null,"Wiersze, których pola zawierają ułamki groszy zostały wyróżnione znakiem \"X\" w kolumnie \"Błąd\" (możesz je szybko wybrać za pomoca funkcji Filtruj). \nKwoty w tych polach są wyświetlane z dokładnością co do grosza, ale gdy zjarzysz do ich formuł, przekonasz się że zawierają więcej miejsc po przecinku.\n \nWpisanie drobnego ułamka (0.0001) jest czasami przydatne do odnotowania w pliku JPK zerowych kwot VAT. Jednak w tym przypadku te ułamki sumują się w kwotę większą od 0.5 grosza, i powodują nieprawidłowe naliczenie sumy kontrolnej w pliku JPK. \nDlatego lepiej teraz popraw te liczby, zaokrąglając je odpowiednio do pełnych groszy.\n\nGdy skończysz nanosić te poprawki, kliknij powtórnie w przycisk [Zapisz jako plik JPK]."]
[]
[]
[]
[]
[null,null,null,null,null,null,null,null,null,null,null,null,null,null,"Pola do podmiamy we wzorcu dokumentu:"]
[null,null,null,null,null,null,null,null,null,null,null,null,null,null,null,null,"OsobaFizyczna:","\t\t<OsobaFizyczna>\n\t\t\t<etd:NIP></etd:NIP>\n\t\t\t<etd:ImiePierwsze></etd:ImiePierwsze>\n\t\t\t<etd:Nazwisko></etd:Nazwisko>\n\t\t\t<etd:DataUrodzenia></etd:DataUrodzenia>\n\t\t\t<Email></Email>\n\t\t\t<Telefon></Telefon>\n\t\t\t<PelnaNazwa/>\n\t\t</OsobaFizyczna>"]
[null,null,null,null,null,null,null,null,null,null,null,null,null,null,null,null,"OsobaFizyczna:","\t\t<OsobaNiefizyczna>\n\t\t\t<NIP></NIP>\n\t\t\t<PelnaNazwa></PelnaNazwa>\n\t\t\t<Email></Email>\n\t\t\t<Telefon></Telefon>\n\t\t\t<etd:ImiePierwsze/>\n\t\t\t<etd:Nazwisko/>\n\t\t\t<etd:DataUrodzenia/>\n\t\t</OsobaNiefizyczna>"]
[null,null,null,null,null,null,null,null,null,null,null,null,null,null,null,null,"DanePodatnika:",{"$f":"IF(TypPodatnika=1,techniczne!R105,techniczne!R106)","v":{"$error":"#REF!"}}]